bitfinex-derivatives/quotes_SOLF0:USTF0_20250609
["timestamp","ask_amount","ask_price","bid_price","bid_amount"]
[1749457333221,4.19497038,150.76,150.74,9.39392918]
[1749457333414,4.19497038,150.75,150.74,9.39392918]
[1749457333615,4.19499976,150.75,150.74,9.39392918]
[1749457333816,6.67464592,150.77,150.74,9.39392918]
[1749457334014,4.19489672,150.76,150.74,9.39392918]
[1749457334319,6.67464592,150.77,150.74,9.39392918]
[1749457334527,4.19489672,150.76,150.74,9.39392918]
[1749457334813,4.19487835,150.75,150.74,9.39392918]
[1749457335019,4.19487843,150.75,150.74,2.76362918]
[1749457335209,0.04504592,150.77,150.74,2.76362918]
[1749457335416,4.19489329,150.76,150.74,2.76362918]
[1749457335619,4.19489329,150.75,150.74,2.76362918]
[1749457336123,6.67464592,150.77,150.74,9.39402918]
[1749457336822,4.19490827,150.76,150.74,9.39402918]
[1749457337120,4.19488016,150.75,150.74,2.76362918]
[1749457337324,6.6299,150.76,150.74,2.76362918]
[1749457337523,4.19489172,150.75,150.74,2.76362918]
[1749457337723,6.6299,150.76,150.74,2.76362918]
[1749457338120,4.19489172,150.75,150.74,2.76362918]
[1749457338320,6.67464592,150.77,150.74,9.39432918]
[1749457338520,4.1962846,150.76,150.74,9.39432918]
[1749457338723,4.19628304,150.75,150.74,9.39432918]
[1749457338924,4.19629772,150.75,150.74,2.76362918]
[1749457339324,6.6299,150.76,150.74,2.76362918]
[1749457339724,4.19631398,150.75,150.74,2.76362918]
[1749457340319,6.6299,150.76,150.73,9.44324321]
[1749457340523,4.19631398,150.75,150.73,9.44324321]
[1749457340929,4.19631765,150.74,150.73,9.44324321]
[1749457341227,2.76362918,150.75,150.73,0.04861403]
[1749457341619,4.19636206,150.74,150.73,0.04861403]
[1749457341824,10.82706206,150.74,150.73,0.04861403]
[1749457342024,9.39432918,150.74,150.73,0.04861403]
[1749457342222,6.96002951,150.74,150.71,32.56]
[1749457342421,2.76362918,150.73,150.71,32.56]
[1749457342623,4.19640058,150.72,150.69,2.76362918]
[1749457342829,2.76362918,150.73,150.69,2.76362918]
[1749457343325,6.6316,150.72,150.69,9.43880151]
[1749457343526,2.80585708,150.73,150.69,2.80620151]
[1749457343725,4.19709702,150.72,150.69,2.80620151]
[1749457343918,2.80585708,150.73,150.7,2.76362918]
[1749457344122,0.0422279,150.73,150.7,2.76362918]
[1749457344317,4.19705446,150.72,150.71,6.6318]
[1749457344525,4.19705438,150.72,150.7,2.76362918]
[1749457344729,0.0422279,150.73,150.7,2.76362918]
[1749457344922,4.19706914,150.72,150.7,9.39572918]
[1749457345122,9.43715708,150.73,150.7,9.39572918]
[1749457345428,4.19706914,150.72,150.7,9.39572918]
[1749457345630,6.6316,150.72,150.7,9.39572918]
[1749457347025,6.6316,150.72,150.69,6.67537233]
[1749457347231,10.8142681,150.71,150.69,0.04257233]
[1749457347431,6.6321,150.71,150.69,0.04257233]
[1749457348630,10.81460868,150.7,150.69,0.04257233]
[1749457349027,10.81461684,150.7,150.69,0.04257233]
[1749457349228,10.8146174,150.7,150.69,0.04257233]
[1749457349429,6.6325,150.7,150.69,0.04257233]
[1749457349628,10.81461865,150.7,150.69,0.04257233]
[1749457349831,9.39612918,150.7,150.69,0.04257233]
[1749457350128,13.57824783,150.7,150.69,0.04257233]
[1749457350528,6.94562135,150.7,150.69,0.04257233]
[1749457351027,4.18199217,150.7,150.69,0.04257233]
[1749457351421,4.18199377,150.7,150.69,0.04257233]
[1749457351625,9.39582918,150.71,150.69,0.04257233]
[1749457351826,6.6325,150.7,150.69,0.04257233]
[1749457352131,10.80105542,150.7,150.69,0.04257233]
[1749457352322,6.6325,150.7,150.69,0.04257233]
[1749457352528,10.80105542,150.7,150.69,0.04257233]
[1749457352726,9.39572918,150.71,150.69,0.04257233]
[1749457353133,4.16854024,150.7,150.69,0.04257233]
[1749457353333,10.80104024,150.7,150.69,0.04257233]
[1749457353531,10.80081161,150.7,150.69,0.04257233]
[1749457353728,6.6325,150.7,150.69,0.04257233]
[1749457354434,10.8008154,150.7,150.69,0.04257233]
[1749457354935,6.6325,150.7,150.69,0.04257233]
[1749457358038,9.39612918,150.7,150.69,0.04257233]
[1749457360938,6.6325,150.7,150.69,0.04257233]
[1749457367142,9.39612918,150.7,150.69,0.04257233]
[1749457376850,6.6343,150.66,150.65,32.56]
[1749457377053,6.6343,150.66,150.64,2.76362918]
[1749457378344,6.68331861,150.67,150.64,9.39862918]
[1749457382152,0.04931861,150.67,150.65,6.6346]
[1749457383353,0.04931861,150.67,150.66,9.39792918]
[1749457401572,11.56512918,150.72,150.7,6.6323]
[1749457401573,4.93342918,150.72,150.7,6.6323]
[1749457401773,4.15372849,150.71,150.7,6.6323]
[1749457402471,2.21189151,150.72,150.7,6.6323]
[1749457402776,8.84349151,150.72,150.7,6.6323]
[1749457402977,4.15365544,150.71,150.7,6.6323]
[1749457403365,4.15365544,150.71,150.7,2.76362918]
[1749457403671,4.15374714,150.71,150.7,2.76362918]
[1749457403876,4.15365544,150.71,150.7,2.76362918]
[1749457404077,8.84349151,150.72,150.7,2.76362918]
[1749457404376,4.15356534,150.71,150.7,2.76362918]
[1749457404567,8.84349151,150.72,150.7,2.76362918]
[1749457404772,4.15374714,150.71,150.7,2.76362918]
[1749457405069,4.15373181,150.71,150.7,2.76362918]
[1749457405473,8.84349151,150.72,150.7,2.76362918]
[1749457405672,4.15373181,150.71,150.7,2.76362918]
[1749457405874,4.15365544,150.71,150.7,2.76362918]
[1749457406075,4.15456608,150.71,150.7,2.76362918]
[1749457406276,4.15471109,150.71,150.7,2.76362918]
[1749457406476,2.21189151,150.72,150.7,9.39602918]
[1749457408273,8.84349151,150.72,150.7,9.39602918]
[1749457408582,2.21189151,150.72,150.7,9.39602918]
[1749457411275,2.21189151,150.72,150.71,6.6321]
[1749457411582,0.04209151,150.72,150.71,9.39572918]
[1749457411881,4.20714569,150.72,150.71,9.39572918]
[1749457412775,4.20765435,150.72,150.71,9.39572918]
[1749457413075,0.04209151,150.72,150.71,9.39572918]
[1749457413282,4.20765435,150.72,150.71,9.39572918]
[1749457413480,0.04209151,150.72,150.71,9.39572918]
[1749457413880,4.20765435,150.72,150.71,9.39572918]
[1749457414577,4.20765056,150.72,150.71,9.39572918]
[1749457415180,0.04209151,150.72,150.71,9.39572918]
[1749457415380,4.20762791,150.72,150.71,9.39572918]
[1749457415784,0.04209151,150.72,150.71,9.39572918]
[1749457416485,0.04209151,150.72,150.71,2.76362918]
[1749457417285,0.04209151,150.72,150.7,2.76362918]
[1749457417486,0.04209151,150.72,150.69,41.98189592]
[1749457417686,0.04209151,150.72,150.69,35.34919592]
[1749457417985,6.6321,150.71,150.69,35.34919592]
[1749457418289,0.04209151,150.72,150.7,2.76362918]
[1749457419482,6.6321,150.71,150.7,2.76362918]
[1749457419681,0.04209151,150.72,150.7,2.76362918]
[1749457419881,0.04209151,150.72,150.71,2.76362918]
[1749457420887,6.67369151,150.72,150.71,2.76362918]
[1749457423493,6.67369151,150.72,150.7,2.76362918]
[1749457424397,6.6321,150.71,150.7,2.76362918]
[1749457424688,6.93117925,150.71,150.69,0.04556674]
[1749457424896,9.39612918,150.7,150.69,0.04556674]
[1749457425192,13.56373877,150.7,150.69,0.04556674]
[1749457425389,13.56373884,150.7,150.69,0.04556674]
[1749457426088,10.80010966,150.7,150.69,0.04556674]
[1749457426395,6.6325,150.7,150.69,0.04556674]
[1749457427090,6.6334,150.68,150.67,2.76362918]
[1749457427787,6.6338,150.67,150.66,35.30362918]
[1749457428394,6.67997967,150.68,150.66,35.30362918]
[1749457429201,6.6338,150.67,150.66,35.30362918]
[1749457429988,0.04637967,150.68,150.65,2.76362918]
[1749457429989,6.6343,150.66,150.65,2.76362918]
[1749457430293,6.6343,150.66,150.64,2.76362918]
[1749457430787,6.634,150.67,150.64,2.76362918]
[1749457430994,2.76362918,150.67,150.64,2.76362918]
[1749457431795,6.6345,150.66,150.64,2.76362918]
[1749457432092,2.81000885,150.68,150.64,2.76362918]
[1749457432690,6.6341,150.67,150.64,2.76362918]
[1749457434697,6.6341,150.67,150.65,6.6347]
[1749457434997,9.44350885,150.68,150.65,6.6347]
[1749457436595,6.6338,150.67,150.64,9.39862918]
[1749457436997,9.44360885,150.68,150.65,6.6347]
[1749457437595,2.81000885,150.68,150.64,2.76362918]
[1749457437795,6.6338,150.67,150.64,9.39842918]
[1749457445798,0.04637967,150.68,150.66,2.76362918]
[1749457446005,0.04637967,150.68,150.67,2.76362918]
[1749457446404,0.04637967,150.68,150.67,9.39742918]
[1749457447109,2.81000885,150.68,150.64,2.76362918]
[1749457447307,2.81000885,150.68,150.64,35.30362918]
[1749457447606,6.6341,150.67,150.65,6.6346]
[1749457448207,6.6343,150.66,150.64,41.93872918]
[1749457449108,6.6339,150.67,150.64,41.93872918]
[1749457449508,6.6339,150.67,150.65,2.76362918]
[1749457450208,6.67987967,150.68,150.66,2.76362918]
[1749457450408,0.04637967,150.68,150.66,2.76362918]
[1749457450908,6.6341,150.67,150.64,41.93852918]
[1749457456709,2.76362918,150.67,150.64,32.54]
[1749457457020,2.76362918,150.65,150.61,32.54]
[1749457457216,2.76362918,150.64,150.61,32.54]
[1749457457913,6.6358,150.63,150.61,32.54]
[1749457458208,2.76362918,150.62,150.58,148.05460376]
[1749457458409,9.39982918,150.62,150.58,39.1775]
[1749457458608,9.39982918,150.62,150.58,41.94112918]
[1749457458911,9.39982918,150.62,150.59,6.6373]
[1749457460311,2.76362918,150.62,150.58,32.54]
[1749457460516,2.76362918,150.6,150.58,32.54]
[1749457460816,2.76362918,150.59,150.56,2.76362918]
[1749457461111,2.76362918,150.58,150.55,32.54]
[1749457461519,2.76362918,150.57,150.53,2.76362918]
[1749457461816,2.80641012,150.57,150.53,2.76362918]
[1749457462619,2.80641012,150.57,150.54,6.6394]
[1749457463017,2.80641012,150.57,150.53,2.76362918]
[1749457463212,0.04278094,150.57,150.52,32.54]
[1749457465719,0.04278094,150.57,150.54,6.6393]
[1749457468018,0.04278094,150.57,150.55,6.6391]
[1749457468222,0.04278094,150.57,150.52,32.54]
[1749457469420,0.04278094,150.57,150.54,6.6393]
[1749457470615,0.04278094,150.57,150.52,32.54]
[1749457471118,6.6387,150.56,150.52,39.1802]
[1749457471421,4.33022685,150.56,150.49,414.74]
[1749457471920,6.6392,150.55,150.49,414.74]
[1749457472223,4.33022685,150.56,150.49,414.74]
[1749457472422,4.33022685,150.56,150.49,32.54]
[1749457472618,4.33022685,150.54,150.49,32.54]
[1749457472824,0.04441997,150.53,150.49,32.54]
[1749457473924,0.04441997,150.53,150.51,6.6407]
[1749457474124,0.04441997,150.53,150.49,32.54]
[1749457474522,0.04441997,150.53,150.51,6.6406]
[1749457476927,6.68441997,150.53,150.5,6.6412]
[1749457477128,6.68441997,150.53,150.49,32.54]
[1749457477524,0.04441997,150.53,150.5,6.6411]
[1749457477930,0.04441997,150.53,150.5,6.6412]
[1749457478230,6.68441997,150.53,150.5,6.6412]
[1749457479733,6.6405,150.52,150.49,39.1816]
[1749457480435,11.01484682,150.53,150.49,39.1816]
[1749457482134,11.01484682,150.53,150.5,6.6413]
[1749457482839,0.04441997,150.53,150.51,6.6407]
[1749457483732,6.68451997,150.53,150.5,6.6412]
[1749457484337,0.04441997,150.53,150.51,6.6408]
[1749457485836,0.04441997,150.53,150.52,6.6404]
[1749457486041,0.04441997,150.53,150.49,32.54]
[1749457486243,0.04441997,150.53,150.52,6.6404]
[1749457495356,0.04441997,150.53,150.52,9.41134625]
[1749457498857,6.638,150.58,150.52,9.41134625]
[1749457498858,5.34145631,150.56,150.55,6.6391]
[1749457499058,5.34145631,150.56,150.55,9.41004625]
[1749457499353,12.79746777,150.61,150.55,2.77094625]
[1749457499547,6.16066777,150.61,150.59,2.77094625]
[1749457499751,32.54,150.64,150.58,2.77094625]
[1749457499752,8.93161402,150.62,150.58,2.77094625]
[1749457499954,2.77094625,150.6,150.58,0.04722551]
[1749457500549,2.77094625,150.59,150.58,0.04722551]
[1749457501156,9.40824625,150.59,150.58,0.04722551]
[1749457501358,6.6373,150.59,150.58,0.04722551]
[1749457502558,10.9651106,150.59,150.58,0.04722551]
[1749457503458,6.6388,150.56,150.53,39.1799]
[1749457504456,6.6391,150.55,150.53,32.54]
[1749457504656,0.04695006,150.56,150.53,32.54]
[1749457504857,0.04695006,150.56,150.52,4.3278106]
[1749457505557,6.68595006,150.56,150.53,6.6399]
[1749457506454,6.68595006,150.56,150.52,4.3278106]
[1749457506455,6.6392,150.55,150.52,10.9680106]
[1749457506660,0.04695006,150.56,150.52,4.3278106]
[1749457507662,6.68585006,150.56,150.53,6.6398]
[1749457508156,6.68585006,150.56,150.52,4.3278106]
[1749457508459,6.68585006,150.56,150.53,6.6397]
[1749457509762,6.6393,150.55,150.52,6.6404]
[1749457510162,6.6393,150.55,150.49,155.69080702]
[1749457511767,5.32384966,150.54,150.49,155.69080702]
[1749457511968,6.6393,150.55,150.49,155.69080702]
[1749457512163,5.32384966,150.54,150.52,6.6401]
[1749457512465,6.6393,150.55,150.49,155.69080702]
[1749457512868,11.96389532,150.54,150.51,6.6406]
[1749457513060,6.6397,150.54,150.51,6.6406]
[1749457513262,6.6393,150.55,150.52,6.6403]
[1749457513465,5.32434109,150.54,150.52,6.6403]
[1749457513665,6.6393,150.55,150.52,6.6403]
[1749457513866,5.32436565,150.54,150.52,6.6403]
[1749457514063,6.6393,150.55,150.52,6.6403]
[1749457514264,5.32470576,150.54,150.52,6.6403]
[1749457514570,6.6393,150.55,150.52,6.6403]
[1749457514766,9.65247799,150.54,150.49,32.54]
[1749457514979,4.3278106,150.52,150.46,34.7676]
[1749457515270,4.3278106,150.52,150.46,41.4105]
[1749457515271,6.6413,150.5,150.46,41.4105]
[1749457515668,5.3241181,150.49,150.46,41.4105]
[1749457515860,6.6427,150.47,150.44,6.6438]
[1749457516067,0.04521887,150.47,150.43,32.6]
[1749457516770,5.34372828,150.46,150.43,32.6]
[1749457517067,0.04521887,150.47,150.43,32.6]
[1749457517260,0.04521887,150.47,150.41,6.4427106]
[1749457517974,11.98484636,150.46,150.43,6.6441]
[1749457518160,0.04521887,150.47,150.41,2.1149]
[1749457518465,9.66753201,150.46,150.4,32.6]
[1749457518661,5.33972141,150.45,150.4,32.6]
[1749457518868,0.04521887,150.47,150.4,32.6]
[1749457519062,11.95740786,150.46,150.42,6.6445]
[1749457519271,6.6433,150.46,150.42,6.6445]
[1749457520272,5.29876444,150.46,150.4,32.6]
[1749457520869,5.29876444,150.46,150.43,6.6441]
[1749457521069,11.94216444,150.46,150.43,6.6441]
[1749457523073,6.6434,150.46,150.43,6.6441]
[1749457523473,6.6435,150.45,150.42,6.6447]
[1749457523676,36.99302947,150.47,150.42,6.6447]
[1749457524275,6.6434,150.46,150.43,6.6444]
[1749457524470,36.99302947,150.47,150.41,4.3278106]
[1749457524672,32.66521887,150.47,150.41,4.3278106]
[1749457525170,0.04521887,150.47,150.43,4.3278106]
[1749457525368,0.04521887,150.47,150.45,4.3278106]
[1749457525774,0.04521887,150.47,150.46,6.6431]
[1749457528075,6.641,150.51,150.48,6.6419]
[1749457528877,6.6414,150.5,150.48,6.6864593]
[1749457529172,0.04232025,150.51,150.48,0.0445593]
[1749457529376,0.04232025,150.51,150.49,4.3278106]
[1749457530476,0.04232025,150.51,150.49,10.9693106]
[1749457530776,0.04232025,150.51,150.49,4.3278106]
[1749457531678,0.04232025,150.51,150.5,6.6413]
[1749457551994,0.04232025,150.51,150.49,10.9693106]
[1749457552895,0.04232025,150.51,150.5,6.6413]
[1749457569712,0.04232025,150.51,150.49,10.9694106]
[1749457570416,0.04232025,150.51,150.5,6.6413]
[1749457572220,5.38359469,150.51,150.5,6.6413]
[1749457572920,0.04232025,150.51,150.5,6.6413]
[1749457573120,5.3856316,150.51,150.5,6.6413]
[1749457573619,8.51739551,150.56,150.54,6.6394]
[1749457573820,5.34464545,150.55,150.54,6.6394]
[1749457574013,5.34464545,150.55,150.53,4.3278106]
[1749457574215,5.34464545,150.54,150.53,4.3278106]
[1749457574821,5.34464545,150.54,150.53,10.9676106]
[1749457575921,0.05001817,150.55,150.54,6.6395]
[1749457576123,5.3817059,150.55,150.54,6.6395]
[1749457576727,5.3817059,150.55,150.53,4.3278106]
[1749457576920,5.32881371,150.54,150.53,4.3278106]
[1749457578226,6.68941817,150.55,150.53,4.3278106]
[1749457578426,0.05001817,150.55,150.53,10.9678106]
[1749457583829,0.05001817,150.55,150.54,6.6395]
[1749457585724,1.817e-05,150.55,150.54,6.6395]
[1749457585932,17.27489551,150.62,150.59,6.6371]
[1749457586127,5.33958933,150.61,150.59,10.9649106]
[1749457586326,5.33958933,150.6,150.59,10.9649106]
[1749457589735,0.04344241,150.61,150.6,6.6369]
[1749457590035,5.38727894,150.61,150.6,6.6369]
[1749457590535,5.38727894,150.61,150.59,10.9650106]
[1749457590730,0.04344241,150.61,150.59,10.9650106]
[1749457593635,0.04344241,150.61,150.58,0.04691694]
[1749457593839,5.34240721,150.6,150.58,0.04691694]
[1749457594040,5.34202634,150.59,150.58,0.04691694]
[1749457594339,6.6373,150.59,150.58,0.04691694]
[1749457595237,11.98192815,150.6,150.58,0.04691694]
[1749457595437,4.36484241,150.61,150.58,0.04691694]
[1749457595640,5.34489078,150.6,150.58,0.04691694]
[1749457595841,6.6372,150.6,150.58,0.04691694]
[1749457596146,5.34545019,150.59,150.58,0.04691694]
[1749457596446,5.3454894,150.59,150.58,0.04691694]
[1749457596841,6.6372,150.6,150.58,0.04691694]
[1749457597345,5.34550437,150.59,150.58,0.04691694]
[1749457597647,11.98285512,150.59,150.58,0.04691694]
[1749457597847,11.98285022,150.59,150.58,0.04691694]
[1749457598148,11.98284769,150.59,150.58,0.04691694]
[1749457598342,11.98312192,150.59,150.58,0.04691694]
[1749457601442,5.34582192,150.59,150.54,32.62]
[1749457601648,6.6388,150.56,150.54,32.62]
[1749457602739,6.6391,150.55,150.54,32.62]
[1749457603138,0.04749336,150.57,150.53,0.04849024]
[1749457603340,6.6395,150.54,150.53,0.04849024]
[1749457603541,11.97936296,150.54,150.53,0.04849024]
[1749457604137,11.97936296,150.54,150.51,32.62]
[1749457604138,6.6403,150.53,150.51,32.62]
[1749457606146,6.6403,150.53,150.51,39.2608]
[1749457607550,6.6403,150.53,150.51,32.62]
[1749457607744,8.8356106,150.56,150.51,32.62]
[1749457607945,5.32576402,150.55,150.51,32.62]
[1749457608140,6.6404,150.52,150.51,32.62]
[1749457608546,6.6404,150.52,150.5,0.04309644]
[1749457608751,6.6409,150.51,150.5,0.04309644]
[1749457609846,8.7982,150.52,150.5,0.04309644]
[1749457611949,6.6409,150.51,150.5,0.04309644]
[1749457612149,11.95304997,150.51,150.5,0.04309644]
[1749457612353,6.6409,150.51,150.5,0.04309644]
[1749457612556,8.7982,150.52,150.5,0.04309644]
[1749457613656,8.7982,150.52,150.5,6.68439644]
[1749457614754,8.7982,150.52,150.5,0.04309644]
[1749457615760,2.1576,150.52,150.5,0.04309644]
[1749457616748,2.1576,150.52,150.5,6.68419644]
[1749457617858,8.798,150.52,150.5,0.04309644]
[1749457619160,2.1576,150.52,150.5,6.68439644]
[1749457620062,2.1576,150.52,150.5,0.04309644]
[1749457622463,2.1576,150.52,150.5,6.68429644]
[1749457622663,0.04786768,150.53,150.51,4.3278106]
[1749457623365,0.04786768,150.53,150.51,10.9687106]
[1749457623561,6.68796768,150.53,150.51,10.9687106]
[1749457623757,0.04786768,150.53,150.5,0.04309644]
[1749457624463,6.6408,150.52,150.5,0.04309644]
[1749457625964,6.6408,150.52,150.5,6.68439644]
[1749457626166,6.6408,150.52,150.5,0.04309644]
[1749457626968,6.68806768,150.53,150.5,6.68439644]
[1749457627766,6.68806768,150.53,150.5,0.04309644]
[1749457628268,0.04786768,150.53,150.51,6.6408]
[1749457628469,0.04786768,150.53,150.51,4.3278106]
[1749457628763,0.04786768,150.53,150.52,6.6404]
[1749457630568,0.04786768,150.53,150.51,10.9685106]
[1749457630769,0.04786768,150.53,150.51,4.3278106]
[1749457631462,0.04786768,150.53,150.52,6.6404]
[1749457631660,0.04786768,150.53,150.51,4.3278106]
[1749457631857,0.04786768,150.53,150.5,0.04309644]
[1749457632061,0.04786768,150.53,150.5,4.37090704]
[1749457632770,6.68816768,150.53,150.5,11.01200704]
[1749457633477,6.68816768,150.53,150.51,6.6408]
[1749457633767,6.68816768,150.53,150.5,4.37090704]
[1749457634664,6.68816768,150.53,150.5,11.01200704]
[1749457635069,6.68816768,150.53,150.5,4.37090704]
[1749457636673,6.68816768,150.53,150.51,6.6408]
[1749457638972,0.04786768,150.53,150.51,6.6408]
[1749457640878,0.04786768,150.53,150.52,6.6404]
[1749457642576,0.04786768,150.53,150.51,6.6407]
[1749457643780,0.04786768,150.53,150.52,6.6404]
[1749457644376,5.37186535,150.53,150.52,6.6404]
[1749457645679,5.37186535,150.53,150.51,6.6407]
[1749457645981,5.32828566,150.52,150.51,6.6407]
[1749457648981,5.33116422,150.52,150.51,6.6407]
[1749457649375,5.33116422,150.52,150.51,9.41271074]
[1749457649676,0.04786768,150.53,150.51,9.41271074]
[1749457649977,0.04786768,150.53,150.52,2.77201074]
[1749457650281,5.37935325,150.53,150.52,2.77201074]
[1749457654187,5.37935325,150.53,150.52,9.41241074]
[1749457654376,6.20411849,150.58,150.52,2.77201074]
[1749457654583,6.20411849,150.58,150.56,2.77201074]
[1749457655287,6.6383,150.57,150.56,2.77201074]
[1749457657183,6.6383,150.57,150.55,0.04202619]
[1749457657589,6.6383,150.57,150.55,6.68102619]
[1749457658490,6.6383,150.57,150.55,0.04202619]
[1749457662192,6.68280554,150.58,150.55,6.68112619]
[1749457662497,0.04480554,150.58,150.56,4.32920194]
[1749457662888,0.04480554,150.58,150.57,6.6382]
[1749457667101,2.2423,150.61,150.56,8.65840388]
[1749457667309,2.1314,150.64,150.6,6.6369]
[1749457667605,5.31156774,150.63,150.6,6.6369]
[1749457667806,2.1314,150.64,150.6,6.6369]
[1749457667807,5.31156774,150.62,150.6,6.6369]
[1749457668003,5.31156774,150.61,150.59,10.96640194]
[1749457668203,6.6817976,150.62,150.59,10.96640194]
[1749457668406,5.3117813,150.61,150.59,10.96640194]
[1749457668700,6.6817976,150.62,150.59,10.96640194]
[1749457668898,5.3088998,150.61,150.59,10.96640194]
[1749457669098,6.6817976,150.62,150.59,10.96640194]
[1749457669307,5.30879636,150.61,150.59,10.96640194]
[1749457669501,6.6817976,150.62,150.59,10.96640194]
[1749457673508,0.0457976,150.62,150.59,4.32920194]
[1749457673709,9.64333266,150.61,150.58,0.0489301]
[1749457673906,4.32920194,150.59,150.55,32.56]
[1749457674206,6.6389,150.56,150.53,6.6398]
[1749457674403,5.31292283,150.57,150.53,6.6398]
[1749457674604,6.6389,150.56,150.53,6.6398]
[1749457675007,6.68677023,150.56,150.53,6.6870269]
[1749457675410,6.68677023,150.56,150.54,6.6395]
[1749457676109,6.68677023,150.56,150.53,6.6870269]
[1749457676705,6.68677023,150.56,150.54,6.6394]
[1749457677311,6.6392,150.55,150.53,0.0472269]
[1749457677910,0.04787023,150.56,150.53,6.6871269]
[1749457678110,6.68667023,150.56,150.53,6.6871269]
[1749457678811,6.6391,150.55,150.53,6.6871269]
[1749457680010,6.6391,150.55,150.53,0.0472269]
[1749457680508,6.6395,150.54,150.53,0.0472269]
[1749457690718,8.7691,150.55,150.53,0.0472269]
[1749457692218,2.1298,150.55,150.53,6.6870269]
[1749457692421,8.82247023,150.56,150.53,6.6870269]
[1749457693417,6.68667023,150.56,150.53,6.6870269]
[1749457693914,0.04787023,150.56,150.54,6.6395]
[1749457694115,0.04787023,150.56,150.53,0.0472269]
[1749457694316,0.04787023,150.56,150.54,6.6393]
[1749457697120,0.04787023,150.56,150.55,6.6391]
[1749457703025,0.04787023,150.56,150.54,10.96860194]
[1749457705719,6.68657023,150.56,150.54,10.96860194]
[1749457706422,0.04787023,150.56,150.54,10.96860194]
[1749457707227,0.04787023,150.56,150.55,6.6391]
[1749457707625,8.38031849,150.63,150.54,4.32920194]
[1749457707932,5.31220222,150.62,150.58,4.32920194]
[1749457708132,5.31220222,150.61,150.58,4.32920194]
[1749457708324,11.94930222,150.6,150.58,4.32920194]
[1749457708524,6.6371,150.6,150.58,4.32920194]
[1749457709530,0.04257755,150.61,150.58,4.32920194]
[1749457711023,0.04257755,150.61,150.6,4.32920194]
[1749457711733,0.04257755,150.61,150.6,10.96610194]
[1749457714629,10.74821849,150.67,150.62,6.6357]
[1749457714829,6.635,150.65,150.62,10.96490194]
[1749457715526,6.68538765,150.65,150.62,11.00907524]
[1749457717027,0.05038765,150.65,150.63,6.6356]
[1749457717226,0.05038765,150.65,150.62,4.37337524]
[1749457717726,6.68508765,150.65,150.62,11.00907524]
[1749457718933,6.68508765,150.65,150.63,6.6355]
[1749457719336,6.68508765,150.65,150.62,11.00917524]
[1749457720133,6.68508765,150.65,150.63,6.6355]
[1749457720633,6.68508765,150.65,150.62,4.37337524]
[1749457720826,6.6352,150.64,150.62,4.37337524]
[1749457721025,0.05038765,150.65,150.62,0.0441733]
[1749457721533,4.1524082,150.64,150.62,0.0441733]
[1749457721729,4.15226567,150.63,150.62,0.0441733]
[1749457721930,10.78786486,150.63,150.62,0.0441733]
[1749457722233,10.79131696,150.63,150.62,0.0441733]
[1749457722436,6.6356,150.63,150.62,0.0441733]
[1749457722625,10.79175441,150.63,150.62,0.0441733]
[1749457722829,6.6356,150.63,150.62,0.0441733]
[1749457723030,10.79163062,150.63,150.62,0.0441733]
[1749457723232,10.79174584,150.63,150.62,0.0441733]
[1749457723529,10.79189755,150.63,150.62,0.0441733]
[1749457723729,6.6356,150.63,150.62,0.0441733]
[1749457724126,10.79170663,150.63,150.62,0.0441733]
[1749457724324,6.6356,150.63,150.62,0.0441733]
[1749457724529,10.79228833,150.63,150.62,0.0441733]
[1749457725129,10.79231221,150.63,150.62,0.0441733]
[1749457725331,10.79232872,150.63,150.62,0.0441733]
[1749457726035,10.79220226,150.63,150.62,0.0441733]
[1749457726232,10.79220445,150.63,150.62,0.0441733]
[1749457726433,10.7921385,150.63,150.62,0.0441733]
[1749457726633,6.6356,150.63,150.62,0.0441733]
[1749457734241,11.946587,150.64,150.62,0.0441733]
[1749457734535,5.311287,150.64,150.62,11.00907524]
[1749457734933,5.311287,150.64,150.63,6.6356]
[1749457735132,6.68528765,150.65,150.63,6.6356]
[1749457735336,0.05038765,150.65,150.62,4.37337524]
[1749457735636,0.05038765,150.65,150.62,36.91337524]
[1749457736139,5.36573967,150.65,150.62,36.91337524]
[1749457736334,0.05038765,150.65,150.62,36.91337524]
[1749457736535,6.6352,150.64,150.62,36.91337524]
[1749457737245,6.6356,150.63,150.62,36.91337524]
[1749457737632,6.6356,150.63,150.62,0.0441733]
[1749457738533,11.95434539,150.63,150.62,0.0441733]
[1749457738736,6.6356,150.63,150.62,0.0441733]
[1749457739040,11.95434539,150.63,150.62,0.0441733]
[1749457739240,6.6356,150.63,150.62,0.0441733]
[1749457739433,11.95434539,150.63,150.62,0.0441733]
[1749457745544,5.31874539,150.63,150.62,0.0441733]
[1749457749740,5.31874539,150.63,150.62,6.6801733]